fUST/lending_fUST_20250929
["ID","MTS","AMOUNT","RATE_DAILY","PERIOD"]
[388369546,1759128649613,-190.263025,0.00027397,7]
[388369547,1759128649622,-151.0,0.00027397,7]
[388369548,1759128649631,-417.179846,0.00027397,7]
[388369549,1759128649641,-190.263026,0.00027397,7]
[388369550,1759128649650,-151.0,0.00027397,7]
[388369551,1759128649659,-417.179853,0.00027397,7]
[388369552,1759128649668,-208.210491,0.00027397,7]
[388369553,1759128649677,-480.0,0.00027397,7]
[388369554,1759128649687,-480.0,0.00027397,7]
[388369555,1759128649696,-480.0,0.00027397,7]
[388369556,1759128649705,-151.0,0.00027397,7]
[388369557,1759128649715,-539.31,0.00027397,7]
[388369558,1759128649724,-518.33,0.00027397,7]
[388369559,1759128649733,-151.0,0.00027397,7]
[388369560,1759128649742,-281.49616388,0.00027397,7]
[388369561,1759128649751,-151.0,0.00027397,7]
[388369562,1759128649761,-151.0,0.00027397,7]
[388369563,1759128649770,-151.0,0.00027397,7]
[388369564,1759128649782,-151.0,0.00027397,7]
[388369565,1759128649792,-500.0,0.00027397,7]
[388369566,1759128649801,-487.02,0.00027397,7]
[388369567,1759128649810,-151.0,0.00027397,7]
[388369568,1759128649820,-480.0,0.00027397,7]
[388369569,1759128649830,-151.0,0.00027397,7]
[388369570,1759128649840,-480.0,0.00027397,7]
[388369571,1759128649849,-908.56,0.00027397,7]
[388369572,1759128649859,-480.0,0.00027397,7]
[388369573,1759128649868,-776.38,0.00027397,7]
[388369574,1759128649877,-480.0,0.00027397,7]
[388369575,1759128649886,-480.0,0.00027397,7]
[388369576,1759128649896,-480.0,0.00027397,7]
[388369577,1759128649905,-480.0,0.00027397,7]
[388369578,1759128649915,-640.75,0.00027397,7]
[388369579,1759128649924,-679.28,0.00027397,7]
[388369580,1759128649933,-836.96,0.00027397,7]
[388369581,1759128649943,-480.0,0.00027397,7]
[388369582,1759128649952,-480.0,0.00027397,7]
[388369583,1759128649961,-3041.42,0.00027397,7]
[388369584,1759128649970,-823.77,0.00027397,7]
[388369585,1759128649980,-691.12,0.00027397,7]
[388369586,1759128649989,-480.0,0.00027397,7]
[388369587,1759128649999,-1311.86,0.00027397,7]
[388369588,1759128650008,-3679.36,0.00027397,7]
[388369589,1759128650018,-480.0,0.00027397,7]
[388369590,1759128650028,-480.0,0.00027397,7]
[388369591,1759128650038,-802.57,0.00027397,7]
[388369592,1759128650047,-480.0,0.00027397,7]
[388369593,1759128650056,-812.92,0.00027397,7]
[388369594,1759128650065,-480.0,0.00027397,7]
[388369595,1759128650075,-151.0,0.00027397,7]
[388369596,1759128650084,-151.0,0.00027397,7]
[388369597,1759128650093,-151.0,0.00027397,7]
[388369598,1759128650103,-1609.36,0.00027397,7]
[388369599,1759128650112,-480.0,0.00027397,7]
[388369600,1759128650121,-954.8,0.00027397,7]
[388369601,1759128650130,-480.0,0.00027397,7]
[388369602,1759128650140,-480.0,0.00027397,7]
[388369603,1759128650150,-1015.79,0.00027397,7]
[388369604,1759128650159,-151.0,0.00027397,7]
[388369605,1759128650170,-151.0,0.00027397,7]
[388369606,1759128650179,-151.0,0.00027397,7]
[388369607,1759128650188,-1494.37,0.00027397,7]
[388369608,1759128650198,-480.0,0.00027397,7]
[388369609,1759128650208,-480.0,0.00027397,7]
[388369610,1759128650217,-151.0,0.00027397,7]
[388369611,1759128650227,-151.0,0.00027397,7]
[388369612,1759128650237,-1000.0,0.00027397,7]
[388369613,1759128650247,-155.95996062,0.00027397,7]
[388369614,1759128650256,-151.0,0.00027397,7]
[388369615,1759128650265,-480.0,0.00027397,7]
[388369616,1759128650275,-897.38,0.00027397,7]
[388369617,1759128650285,-480.0,0.00027397,7]
[388369618,1759128650294,-3809.93,0.00027397,7]
[388369619,1759128650303,-480.0,0.00027397,7]
[388369620,1759128650313,-480.0,0.00027397,7]
[388369621,1759128650331,-480.0,0.00027397,7]
[388369622,1759128650343,-1099.25,0.00027397,7]
[388369623,1759128650352,-480.0,0.00027397,7]
[388369624,1759128650361,-480.0,0.00027397,7]
[388369625,1759128650371,-1023.87,0.00027397,7]
[388369626,1759128650383,-480.0,0.00027397,7]
[388369627,1759128650392,-151.0,0.00027397,7]
[388369628,1759128650402,-480.0,0.00027397,7]
[388369629,1759128650410,-480.0,0.00027397,7]
[388369630,1759128650419,-151.0,0.00027397,7]
[388369631,1759128650428,-1540.07,0.00027397,7]
[388369632,1759128650437,-500.0,0.00027397,7]
[388369633,1759128650446,-1427.44,0.00027397,7]
[388369634,1759128650456,-615.48956978,0.00027397,7]
[388369635,1759128650465,-151.0,0.00027397,7]
[388369636,1759128650473,-480.0,0.00027397,7]
[388369637,1759128650482,-151.0,0.00027397,7]
[388369638,1759128650491,-480.0,0.00027397,7]
[388369639,1759128650501,-151.0,0.00027397,7]
[388369640,1759128650511,-1384.27,0.00027397,7]
[388369641,1759128650521,-151.0,0.00027397,7]
[388369642,1759128650531,-1051.85,0.00027397,7]
[388369643,1759128650541,-151.00653973,0.00027397,2]
[388369644,1759128650551,-151.0,0.00027397,7]
[388369645,1759128650561,-151.0,0.00027397,7]
[388369646,1759128650571,-511.37387211,0.00027397,7]
[388369647,1759128650581,-151.0,0.00027397,7]
[388369648,1759128650591,-151.0,0.00027397,7]
[388369649,1759128650600,-151.0,0.00027397,7]
[388369650,1759128650609,-151.0,0.00027397,7]
[388369651,1759128650619,-480.0,0.00027397,7]
[388369652,1759128650629,-798.74,0.00027397,7]
[388369653,1759128650638,-151.0,0.00027397,7]
[388369654,1759128650648,-151.0,0.00027397,7]
[388369655,1759128650657,-151.0,0.00027397,7]
[388369656,1759128650667,-151.0,0.00027397,7]
[388369657,1759128650676,-151.0,0.00027397,7]
[388369658,1759128650685,-1398.68,0.00027397,7]
[388369659,1759128650694,-151.0,0.00027397,7]
[388369660,1759128650703,-151.0,0.00027397,7]
[388369661,1759128650713,-156.27182185,0.00027397,7]
[388369662,1759128650723,-480.0,0.00027397,7]
[388369663,1759128650732,-480.0,0.00027397,7]
[388369664,1759128650742,-151.0,0.00027397,7]
[388369665,1759128650751,-480.0,0.00027397,7]
[388369666,1759128650761,-151.0,0.00027397,7]
[388369667,1759128650771,-151.0,0.00027397,7]
[388369668,1759128650780,-483.06591017,0.00027397,7]
[388369669,1759128650791,-151.0,0.00027397,7]
[388369670,1759128650800,-790.29,0.00027397,7]
[388369671,1759128650810,-151.0,0.00027397,7]
[388369672,1759128650819,-151.0,0.00027397,7]
[388369673,1759128650828,-151.0,0.00027397,7]
[388369674,1759128650838,-151.0,0.00027397,7]
[388369675,1759128650847,-480.0,0.00027397,7]
[388369676,1759128650856,-780.33,0.00027397,7]
[388369677,1759128650866,-680.16,0.00027397,7]
[388369678,1759128650875,-480.0,0.00027397,7]
[388369679,1759128650885,-5231.52,0.00027397,7]
[388369680,1759128650894,-759.34,0.00027397,7]
[388369681,1759128650903,-480.0,0.00027397,7]
[388369682,1759128650913,-480.0,0.00027397,7]
[388369683,1759128650922,-550.02,0.00027397,7]
[388369684,1759128650932,-1189.57,0.00027397,7]
[388369685,1759128650941,-530.15,0.00027397,7]
[388369686,1759128650951,-480.0,0.00027397,7]
[388369687,1759128650960,-813.1,0.00027397,7]
[388369688,1759128650970,-480.0,0.00027397,7]
[388369689,1759128650980,-480.0,0.00027397,7]
[388369690,1759128650989,-1103.84,0.00027397,7]
[388369691,1759128650999,-251.981166,0.00027397,7]
[388369692,1759128651008,-251.981166,0.00027397,7]
[388369693,1759128651017,-480.0,0.00027397,7]
[388369694,1759128651027,-251.981166,0.00027397,7]
[388369695,1759128651037,-251.981166,0.00027397,7]
[388369696,1759128651047,-251.981166,0.00027397,7]
[388369697,1759128651056,-251.981166,0.00027397,7]
[388369698,1759128651065,-251.981166,0.00027397,7]
[388369699,1759128651074,-251.981166,0.00027397,7]
[388369700,1759128651084,-251.981166,0.00027397,7]
[388369701,1759128651093,-251.981166,0.00027397,7]
[388369702,1759128651103,-251.981166,0.00027397,7]
[388369703,1759128651112,-251.981166,0.00027397,7]
[388369704,1759128651122,-251.981166,0.00027397,7]
[388369705,1759128651132,-251.981166,0.00027397,7]
[388369706,1759128651142,-251.981166,0.00027397,7]
[388369707,1759128651151,-1080.8,0.00027397,7]
[388369708,1759128651160,-251.981157,0.00027397,7]
[388369709,1759128651170,-585.19,0.00027397,7]
[388369710,1759128651179,-480.0,0.00027397,7]
[388369711,1759128651189,-2648.62,0.00027397,7]
[388369712,1759128651198,-480.0,0.00027397,7]
[388369713,1759128651207,-480.0,0.00027397,7]
[388369714,1759128651217,-210.77066295,0.00027397,7]
[388369715,1759128651226,-2414.31,0.00027397,7]
[388369716,1759128651235,-480.0,0.00027397,7]
[388369717,1759128651244,-480.0,0.00027397,7]
[388369718,1759128651255,-500.0,0.00027397,7]
[388369719,1759128651264,-221.26905103,0.00027397,7]
[388369720,1759128651273,-805.49,0.00027397,7]
[388369721,1759128651283,-694.56,0.00027397,7]
[388369722,1759128651293,-480.0,0.00027397,7]
[388369723,1759128651302,-3800.0,0.00027397,7]
[388369724,1759128651311,-1015.59,0.00027397,7]
[388369725,1759128651320,-480.0,0.00027397,7]
[388369726,1759128651334,-638.48,0.00027397,7]
[388369727,1759128651344,-772.28,0.00027397,7]
[388369728,1759128651354,-480.0,0.00027397,7]
[388369729,1759128651363,-480.0,0.00027397,7]
[388369730,1759128651373,-2461.93,0.00027397,7]
[388369731,1759128651382,-588.87,0.00027397,7]
[388369732,1759128651391,-882.11,0.00027397,7]
[388369733,1759128651401,-756.4,0.00027397,7]
[388369734,1759128651411,-480.0,0.00027397,7]
[388369735,1759128651420,-3874.46,0.00027397,7]
[388369736,1759128651430,-480.0,0.00027397,7]
[388369737,1759128651439,-943.15,0.00027397,7]
[388369738,1759128651449,-480.0,0.00027397,7]
[388369739,1759128651458,-480.0,0.00027397,7]
[388369740,1759128651468,-151.0,0.00027397,7]
[388369741,1759128651477,-151.0,0.00027397,7]
[388369742,1759128651486,-480.0,0.00027397,7]
[388369743,1759128651495,-269.118665,0.00027397,7]
[388369744,1759128651504,-480.0,0.00027397,7]
[388369745,1759128651514,-2236.08,0.00027397,7]
[388369746,1759128651524,-369.23758118,0.00027397,7]
[388369747,1759128651534,-2179.33,0.00027397,7]
[388369748,1759128651543,-480.0,0.00027397,7]
[388369749,1759128651553,-481.62728696,0.00027397,7]
[388369750,1759128651563,-480.0,0.00027397,7]
[388369751,1759128651572,-952.18,0.00027397,7]
[388369752,1759128651581,-728.03,0.00027397,7]
[388369753,1759128651591,-480.0,0.00027397,7]
[388369754,1759128651600,-1523.82,0.00027397,7]
[388369755,1759128651609,-480.0,0.00027397,7]
[388369756,1759128651618,-1023.32,0.00027397,7]
[388369757,1759128651628,-1958.0,0.00027397,7]
[388369758,1759128651638,-1937.249894,0.00027397,7]
[388369759,1759128651647,-1937.249894,0.00027397,7]
[388369760,1759128651657,-480.0,0.00027397,7]
[388369761,1759128651666,-151.0,0.00027397,7]
[388369762,1759128651676,-151.0,0.00027397,7]
[388369763,1759128651686,-1937.249894,0.00027397,7]
[388369764,1759128651696,-1937.249894,0.00027397,7]
[388369765,1759128651705,-2983.24,0.00027397,7]
[388369766,1759128651714,-992.29,0.00027397,7]
[388369767,1759128651725,-233.87608454,0.00027397,7]
[388369768,1759128651735,-1937.249894,0.00027397,7]
[388369769,1759128651744,-720.44,0.00027397,7]
[388369770,1759128651753,-480.0,0.00027397,7]
[388369771,1759128651763,-1937.249894,0.00027397,7]
[388369772,1759128651772,-1135.45,0.00027397,7]
[388369773,1759128651782,-643.05,0.00027397,7]
[388369774,1759128651791,-480.0,0.00027397,7]
[388369775,1759128651801,-1937.249894,0.00027397,7]
[388369776,1759128651810,-821.74,0.00027397,7]
[388369777,1759128651820,-1937.24989007,0.00027397,7]
[388369778,1759128651829,-480.0,0.00027397,7]
[388369779,1759128651839,-920.3,0.00027397,7]
[388369780,1759128651848,-1452.85,0.00027397,7]
[388369781,1759128651858,-480.0,0.00027397,7]
[388369782,1759128651867,-1214.29,0.00027397,7]
[388369783,1759128651876,-151.0,0.00027397,7]
[388369784,1759128651885,-480.0,0.00027397,7]
[388369785,1759128651895,-151.0,0.00027397,7]
[388369786,1759128651905,-2970.42,0.00027397,7]
[388369787,1759128651914,-480.0,0.00027397,7]
[388369788,1759128651923,-480.0,0.00027397,7]
[388369789,1759128651932,-392.533152,0.00027397,7]
[388369790,1759128651942,-392.533152,0.00027397,7]
[388369791,1759128651951,-151.0,0.00027397,7]
[388369792,1759128651960,-151.0,0.00027397,7]
[388369793,1759128651970,-1197.94,0.00027397,7]
[388369794,1759128651980,-392.533152,0.00027397,7]
[388369795,1759128651989,-1027.93,0.00027397,7]
[388369796,1759128651998,-392.533153,0.00027397,7]
[388369797,1759128652008,-151.0,0.00027397,7]
[388369798,1759128652018,-151.0,0.00027397,7]
[388369799,1759128652028,-160.086913,0.00027397,7]
[388369800,1759128652037,-480.0,0.00027397,7]
[388369801,1759128652047,-582.32,0.00027397,7]
[388369802,1759128652056,-480.0,0.00027397,7]
[388369803,1759128652066,-8455.84,0.00027397,7]
[388369804,1759128652075,-151.0,0.00027397,7]
[388369805,1759128652084,-151.0,0.00027397,7]
[388369806,1759128652094,-926.52,0.00027397,7]
[388369807,1759128652103,-480.0,0.00027397,7]
[388369808,1759128652112,-151.0,0.00027397,7]
[388369809,1759128652121,-151.0,0.00027397,7]
[388369810,1759128652131,-151.0,0.00027397,7]
[388369811,1759128652140,-151.0,0.00027397,7]
[388369812,1759128652150,-151.0,0.00027397,7]
[388369813,1759128652159,-189.862779,0.00027397,7]
[388369814,1759128652168,-480.0,0.00027397,7]
[388369815,1759128652178,-151.0,0.00027397,7]
[388369816,1759128652187,-151.0,0.00027397,7]
[388369817,1759128652196,-480.0,0.00027397,7]
[388369818,1759128652205,-480.0,0.00027397,7]
[388369819,1759128652215,-870.42,0.00027397,7]
[388369820,1759128652224,-892.52,0.00027397,7]
[388369821,1759128652233,-809.33,0.00027397,7]
[388369822,1759128652243,-480.0,0.00027397,7]
[388369823,1759128652252,-480.0,0.00027397,7]
[388369824,1759128652262,-8536.49,0.00027397,7]
[388369825,1759128652272,-480.0,0.00027397,7]
[388369826,1759128652282,-943.86,0.00027397,7]
[388369827,1759128652292,-480.0,0.00027397,7]
[388369828,1759128652302,-480.0,0.00027397,7]
[388369829,1759128652311,-480.0,0.00027397,7]
[388369830,1759128652320,-480.0,0.00027397,7]
[388369831,1759128652336,-1624.12,0.00027397,7]
[388369832,1759128652346,-728.92,0.00027397,7]
[388369833,1759128652356,-765.58,0.00027397,7]
[388369834,1759128652367,-1117.74,0.00027397,7]
[388369835,1759128652376,-947.96,0.00027397,7]
[388369836,1759128652385,-1013.53,0.00027397,7]
[388369837,1759128652396,-4526.78,0.00027397,7]
[388369838,1759128652406,-480.0,0.00027397,7]
[388369839,1759128652415,-480.0,0.00027397,7]
[388369840,1759128652425,-820.4,0.00027397,7]
[388369841,1759128652435,-480.0,0.00027397,7]
[388369842,1759128652443,-480.0,0.00027397,7]
[388369843,1759128652453,-480.0,0.00027397,7]
[388369844,1759128652462,-480.0,0.00027397,7]
[388369845,1759128652471,-4703.57,0.00027397,7]
[388369846,1759128652481,-151.0,0.00027397,7]
[388369847,1759128652491,-159.072455,0.00027397,7]
[388369848,1759128652501,-1937.43,0.00027397,7]
[388369850,1759128652511,-1633.02,0.00027397,7]
[388369852,1759128652521,-480.0,0.00027397,7]
[388369853,1759128652531,-480.0,0.00027397,7]
[388369854,1759128652540,-480.0,0.00027397,7]
[388369855,1759128652549,-480.0,0.00027397,7]
[388369856,1759128652559,-480.0,0.00027397,7]
[388369857,1759128652569,-1672.86,0.00027397,7]
[388369858,1759128652579,-480.0,0.00027397,7]
[388369859,1759128652588,-2059.81,0.00027397,7]
[388369860,1759128652598,-480.0,0.00027397,7]
[388369861,1759128652607,-1079.43,0.00027397,7]
[388369862,1759128652616,-791.53,0.00027397,7]
[388369863,1759128652625,-480.0,0.00027397,7]
[388369864,1759128652634,-480.0,0.00027397,7]
[388369865,1759128652643,-480.0,0.00027397,7]
[388369866,1759128652653,-742.4,0.00027397,7]
[388369867,1759128652661,-816.1,0.00027397,7]
[388369868,1759128652671,-480.0,0.00027397,7]
[388369869,1759128652680,-480.0,0.00027397,7]
[388369870,1759128652689,-959.53,0.00027397,7]
[388369871,1759128652698,-480.0,0.00027397,7]
[388369872,1759128652707,-480.74465385,0.00027397,7]
[388369873,1759128652870,-1905.59,0.00027397,7]
[388369874,1759128652880,-316.242803,0.00027397,7]
[388369875,1759128652890,-480.0,0.00027397,7]
[388369876,1759128652899,-316.242803,0.00027397,7]
[388369877,1759128652908,-480.0,0.00027397,7]
[388369878,1759128652917,-159.99022613,0.00027397,7]
[388369879,1759128652927,-480.0,0.00027397,7]
[388369880,1759128652936,-316.242803,0.00027397,7]
[388369881,1759128652945,-480.0,0.00027397,7]
[388369882,1759128652954,-316.242811,0.00027397,7]
[388369883,1759128652963,-3633.89,0.00027397,7]
[388369884,1759128652973,-480.0,0.00027397,7]
[388369885,1759128652981,-480.0,0.00027397,7]
[388369886,1759128652990,-1564.23,0.00027397,7]
[388369887,1759128653000,-480.0,0.00027397,7]
[388369888,1759128653009,-819.69,0.00027397,7]
[388369889,1759128653019,-1009.05,0.00027397,7]
[388369890,1759128653029,-480.0,0.00027397,7]
[388369891,1759128653039,-480.0,0.00027397,7]
[388369892,1759128653049,-480.0,0.00027397,7]
[388369893,1759128653059,-2396.98,0.00027397,7]
[388369894,1759128653068,-480.0,0.00027397,7]
[388369895,1759128653078,-480.0,0.00027397,7]
[388369896,1759128653087,-1334.28,0.00027397,7]
[388369897,1759128653097,-480.0,0.00027397,7]
[388369898,1759128653107,-1330.93,0.00027397,7]
[388369899,1759128653117,-151.0,0.00027397,7]
[388369900,1759128653126,-480.0,0.00027397,7]
[388369901,1759128653136,-480.0,0.00027397,7]
[388369902,1759128653146,-5104.06,0.00027397,7]
[388369903,1759128653156,-480.0,0.00027397,7]
[388369904,1759128653166,-569.9,0.00027397,7]
[388369905,1759128653176,-151.0,0.00027397,7]
[388369906,1759128653186,-480.0,0.00027397,7]
[388369907,1759128653195,-1965.67,0.00027397,7]
[388369908,1759128653205,-575.08,0.00027397,7]
[388369909,1759128653214,-480.0,0.00027397,7]
[388369910,1759128653223,-974.92,0.00027397,7]
[388369911,1759128653232,-480.0,0.00027397,7]
[388369912,1759128653243,-212.44,0.00027397,7]
[388369913,1759128653253,-2829.97,0.00027397,7]
[388369914,1759128653262,-480.0,0.00027397,7]
[388369915,1759128653271,-480.0,0.00027397,7]
[388369916,1759128653281,-1118.15,0.00027397,7]
[388369917,1759128653290,-480.0,0.00027397,7]
[388369918,1759128653300,-3825.34,0.00027397,7]
[388369919,1759128653309,-480.0,0.00027397,7]
[388369920,1759128653319,-480.0,0.00027397,7]
[388369921,1759128653332,-480.0,0.00027397,7]
[388369922,1759128653341,-449.33448472,0.00027397,7]
[388369923,1759128653351,-480.0,0.00027397,7]
[388369924,1759128653360,-2236.13,0.00027397,7]
[388369925,1759128653371,-847.37,0.00027397,7]
[388369926,1759128653380,-151.0,0.00027397,7]
[388369927,1759128653390,-480.0,0.00027397,7]
[388369928,1759128653400,-480.0,0.00027397,7]
[388369929,1759128653409,-151.0,0.00027397,7]
[388369930,1759128653419,-282.47934986,0.00027397,7]
[388369931,1759128653428,-2051.31,0.00027397,7]
[388369932,1759128653438,-902.33,0.00027397,7]
[388369933,1759128653447,-480.0,0.00027397,7]
[388369934,1759128653456,-781.76,0.00027397,7]
[388369935,1759128653466,-7914.07,0.00027397,7]
[388369936,1759128653475,-480.0,0.00027397,7]
[388369937,1759128653485,-480.0,0.00027397,7]
[388369938,1759128653495,-480.0,0.00027397,7]
[388369939,1759128653505,-480.0,0.00027397,7]
[388369940,1759128653516,-480.0,0.00027397,7]
[388369941,1759128653526,-480.0,0.00027397,7]
[388369942,1759128653537,-3409.13,0.00027397,7]
[388369943,1759128653546,-480.0,0.00027397,7]
[388369944,1759128653556,-916.49,0.00027397,7]
[388369945,1759128653566,-480.0,0.00027397,7]
[388369946,1759128653576,-480.0,0.00027397,7]
[388369947,1759128653586,-551.24,0.00027397,7]
[388369948,1759128653595,-480.0,0.00027397,7]
[388369949,1759128653606,-480.0,0.00027397,7]
[388369950,1759128653615,-480.0,0.00027397,7]
[388369951,1759128653625,-490.95,0.00027397,7]
[388369952,1759128653634,-480.0,0.00027397,7]
[388369953,1759128653644,-2193.91,0.00027397,7]
[388369954,1759128653654,-3253.06,0.00027397,7]
[388369955,1759128653663,-922.81,0.00027397,7]
[388369956,1759128653673,-566.89362169,0.00027397,7]
[388369957,1759128653683,-824.29,0.00027397,7]
[388369958,1759128653693,-480.0,0.00027397,7]
[388369959,1759128653703,-403.37011725,0.00027397,7]
[388369960,1759128653713,-837.48,0.00027397,7]
[388369961,1759128653723,-480.0,0.00027397,7]
[388369962,1759128653732,-480.0,0.00027397,7]
[388369963,1759128653742,-882.5,0.00027397,7]
[388369964,1759128653752,-553.63,0.00027397,7]
[388369965,1759128653762,-480.0,0.00027397,7]
[388369966,1759128653772,-480.0,0.00027397,7]
[388369967,1759128653782,-480.0,0.00027397,7]
[388369968,1759128653792,-480.0,0.00027397,7]
[388369969,1759128653802,-897.11,0.00027397,7]
[388369970,1759128653812,-801.19,0.00027397,7]
[388369971,1759128653822,-480.4966852,0.00027397,7]
[388369972,1759128653832,-990.29,0.00027397,7]
[388369973,1759128653841,-480.0,0.00027397,7]
[388369974,1759128653852,-480.0,0.00027397,7]
[388369975,1759128653862,-151.0,0.00027397,7]
[388369976,1759128653872,-722.13,0.00027397,7]
[388369977,1759128653882,-585.67,0.00027397,7]
[388369978,1759128653893,-480.0,0.00027397,7]
[388369979,1759128653903,-151.0,0.00027397,7]
[388369980,1759128653913,-610.29,0.00027397,7]
[388369981,1759128653922,-984.11,0.00027397,7]
[388369982,1759128653931,-1446.7,0.00027397,7]
[388369983,1759128653941,-637.35,0.00027397,7]
[388369984,1759128653951,-1097.25305,0.00027397,7]
[388369985,1759128653962,-1097.25305,0.00027397,7]
[388369986,1759128653971,-480.0,0.00027397,7]
[388369987,1759128653982,-480.0,0.00027397,7]
[388369988,1759128653991,-1097.25305,0.00027397,7]
[388369989,1759128654000,-480.0,0.00027397,7]
[388369990,1759128654010,-2208.99,0.00027397,7]
[388369991,1759128654020,-1097.25304,0.00027397,7]
[388369992,1759128654030,-582.08,0.00027397,7]
[388369993,1759128654040,-939.9,0.00027397,7]
[388369994,1759128654050,-480.0,0.00027397,7]
[388369995,1759128654061,-480.0,0.00027397,7]
[388369996,1759128654070,-480.0,0.00027397,7]
[388369997,1759128654080,-3566.93,0.00027397,7]
[388369998,1759128654090,-1917.52,0.00027397,7]
[388369999,1759128654100,-480.0,0.00027397,7]
[388370000,1759128654110,-480.0,0.00027397,7]
[388370001,1759128654120,-1321.69,0.00027397,7]
[388370002,1759128654130,-480.0,0.00027397,7]
[388370003,1759128654140,-313.4461521,0.00027397,7]
[388370004,1759128654150,-480.0,0.00027397,7]
[388370005,1759128654160,-1258.07,0.00027397,7]
[388370006,1759128654170,-8467.032482,0.00027397,7]
[388370007,1759128654180,-485.81,0.00027397,7]
[388370008,1759128654190,-891.2,0.00027397,7]
[388370009,1759128654200,-151.0,0.00027397,7]
[388370010,1759128654211,-480.0,0.00027397,7]
[388370011,1759128654222,-282.32945383,0.00027397,7]
[388370012,1759128654557,-8184.70302817,0.00027397,7]
[388370013,1759128654567,-6874.54,0.00027397,3]
[388370014,1759128654577,-8788.1,0.00027397,7]
[388370015,1759128654587,-480.0,0.00027397,7]
[388370016,1759128654596,-8467.032482,0.00027397,7]
[388370017,1759128654606,-150.0,0.00027397,5]
[388370018,1759128654615,-310.0,0.000274,2]
[388370019,1759128654625,-151.0,0.000274,19]
[388370020,1759128654634,-151.0,0.000274,12]
[388370021,1759128654643,-151.0,0.000274,16]
[388370022,1759128654653,-151.0,0.000274,15]
[388370023,1759128654662,-208.0,0.00027402,2]
[388370024,1759128654671,-2923.0,0.00027468,2]
[388370025,1759128654681,-979.0,0.00027468,2]
[388370026,1759128654690,-629.0,0.00027468,2]
[388370027,1759128654700,-2156.0,0.00027468,2]
[388370028,1759128654710,-150.0,0.00027468,2]
[388370029,1759128654719,-410.0,0.00027468,2]
[388370030,1759128654729,-250.0,0.00027468,2]
[388370031,1759128654738,-427.525,0.00027468,2]
[388370032,1759128654748,-151.0,0.0002749,7]
[388370033,1759128654758,-151.0,0.0002749,7]
[388370034,1759128654768,-100000.0,0.000275,23]
[388370035,1759128654777,-153.914599,0.000275,7]
[388370036,1759128654788,-151.0,0.000275,7]
[388370037,1759128654797,-151.0,0.000275,7]
[388370038,1759128654807,-162.879495,0.000275,7]
[388370039,1759128654816,-151.0,0.000275,7]
[388370040,1759128654826,-460.0,0.000275,2]
[388370041,1759128654835,-170.64745108,0.00027507,30]
[388370042,1759128654844,-150.0,0.00027538,2]
[388370043,1759128654853,-504.26317498,0.00027571,2]
[388370044,1759128654863,-500.0,0.00027573,5]
[388370045,1759128654873,-341.11617394,0.0002758,3]
[388370046,1759128654882,-170.64745108,0.00027644,30]
[388370047,1759128654891,-721.0,0.00027647,2]